Cogmind - Beta 17 @@@ ROGUE MODE // 2026.07.28 @ 20:41:51 Player: PE-P51 Result: Self-destructed Performance ------------- Evolutions (2) 1000 Regions Visited (3) 600 Robots Destroyed (38) 190 Value Destroyed (961) 961 Prototype IDs (15) 300 Alien Tech Used (0) 0 Bonus (0) 0 TOTAL SCORE: 3051 Bonus ------- None Cogmind --------- Core Integrity 550/550 Matter 280/300 Energy 275/275 System Corruption 0% Temperature Cool (0) Movement Treading (250) Ox1 Location -8/Materials Parts ------- > --- POWER (1) -------- Deuterium Engine (fused) > --- PROPULSION (4) --- Armored Treads (fused) Armored Treads (fused) > --- UTILITY (3) ------ High-capacity Storage Unit Self-contained Transmogrifier > --- WEAPON (3) ------- Shock Rifle (fused) Thermic Laser (fused) > --- INVENTORY (20) --- Light Ion Engine Meta Core VTOL Module VTOL Module VTOL Module Flightbrick High-capacity Matter Pod (200) Sensor Array Signal Interpreter Scrap Shield Cobbler Unit Beam Cannon Beam Cannon Subdweller Shrapnel Launcher Mining Laser Peak State ------------ > --- POWER ------------ Deuterium Engine > --- PROPULSION ------- Armored Treads Armored Treads > --- UTILITY ---------- High-capacity Storage Unit Self-contained Transmogrifier > --- WEAPON ----------- Thermic Laser Blade Saw > --- INVENTORY -------- Light Ion Engine Meta Core VTOL Module VTOL Module VTOL Module Flightbrick High-capacity Matter Pod Sensor Array Signal Interpreter Scrap Shield Cobbler Unit Beam Cannon Beam Cannon Subdweller Shrapnel Launcher Mining Laser [Rating: 34] Favorites ----------- Power Ion Engine Engine Ion Engine Propulsion Aluminum Leg Treads Light Treads Leg Aluminum Leg Utility High-capacity Storage Unit Device Sensor Array Storage High-capacity Storage Unit Weapon Autogun Energy Gun Thermic Laser Energy Cannon Beam Cannon Ballistic Gun Autogun Launcher Grenade Launcher Special Weapon Mining Laser Slashing Weapon Blade Saw Build | -11 -10 -10 -8 ------- Run | Yrd Mat Sub Mat Slots Evolved 4 | . . . 4 Power . | . . . . Propulsion 2 | . . . 2 Utility 1 | . . . 1 Weapon 1 | . . . 1 Parts Attached 26 | 1 14 11 . Power 1 | . 1 . . Engine 1 | . 1 . . Core . | . . . . Reactor . | . . . . Propulsion 5 | . 3 2 . Treads 2 | . . 2 . Leg 3 | . 3 . . Wheel . | . . . . Hover . | . . . . Flight . | . . . . Utility 7 | . 4 3 . Device 5 | . 2 3 . Storage 2 | . 2 . . Processor . | . . . . Hackware . | . . . . Protection . | . . . . Artifact . | . . . . Weapon 13 | 1 6 6 . Energy Gun 2 | . 1 1 . Energy Cannon 3 | . 2 1 . Ballistic Gun 6 | 1 1 4 . Ballistic Cannon . | . . . . Launcher 1 | . 1 . . Special Weapon 1 | . 1 . . Impact Weapon . | . . . . Slashing Weapon . | . . . . Piercing Weapon . | . . . . Special Melee Weapon . | . . . . Unidentified Prototypes 1 | . . 1 . Parts Lost 2 | . . 2 . Power . | . . . . Propulsion 1 | . . 1 . Utility . | . . . . Weapon 1 | . . 1 . Highest Loss Streak 1 | . . 1 . To Critical Strikes . | . . . . Average Backups 14 | 6 10 17 15 Power 1 | 1 1 1 1 Propulsion 4 | 4 3 4 4 Utility 4 | . 2 5 5 Weapon 4 | 1 3 5 4 Tool/Special . | . . . . Unused Backups 21 | . 7 3 11 Power 3 | . 2 . 1 Propulsion 9 | . 3 2 4 Utility 6 | . 1 1 4 Weapon 2 | . 1 . 1 Tool/Special 1 | . . . 1 Average Slot Usage (%) 98 | . 98 99 63 Engine 13 | . 14 14 9 Treads 14 | . . 23 18 Leg 12 | . 28 4 . Device 13 | . 12 14 9 Storage 14 | . 14 14 9 Energy Gun 3 | . 2 3 9 Energy Cannon 10 | . 20 4 . Ballistic Gun 11 | . 3 16 . Special Weapon 2 | . 1 2 . Peak Build Rating 34 | 7 10 34 34 Average Rating 13 | 6 8 16 34 On Entrance 14 | 6 7 10 34 Avg Prop Armor Cover (%) . | . . . . Naked Turns . | . . . . Heaviest Build 61 | 13 52 61 56 Greatest Support 40 | 20 20 40 40 Greatest Overweight (x) 2 | . 2 2 1 Average Overweight (x) . | . . 1 1 Largest Inventory Capacity 20 | 8 20 20 20 Average Capacity 16 | 8 11 20 20 Most Carried 20 | 8 20 20 20 Average Carried 16 | 6 10 19 20 Final Capacity 20 | 8 20 20 20 Final Carried 20 | 8 20 20 20 Transmogrified Parts 12 | . . 11 1 Integrity Recovered 366 | . . 365 1 Class Distribution -------------------- 73% | Mutant 26% | Scavenger-Mutant Dominant Class ---------------- Mutant | -10/Materials Mutant | -10/Subcaves Mutant | -8/Materials Resources | -11 -10 -10 -8 ----------- Run | Yrd Mat Sub Mat Matter Collected 1275 | 275 384 616 . Remotely . | . . . . Salvage Created 1078 | 86 530 462 . Parts 71 | 8 23 40 . Haulers Intercepted 1 | . 1 . . Recyclers Shooed 3 | . 3 . . Parts Field Recycled . | . . . . Retrieved Matter . | . . . . Parts Self-Destructed 9 | . . 9 . Prevented . | . . . . Parts Restored . | . . . . Kills | -11 -10 -10 -8 ------- Run | Yrd Mat Sub Mat Combat Hostiles Destroyed 28 | . 14 14 . Guns 8 | . . 8 . Cannons 11 | . 9 2 . AOE 9 | . 5 4 . Classes Destroyed 10 | 1 6 3 . Worker 1 | . 1 . . Builder 1 | . 1 . . Tunneler 4 | 4 . . . Hauler 1 | . 1 . . Recycler 1 | . 1 . . Turret 2 | . . 2 . Swarmer 9 | . 5 4 . Grunt 9 | . 9 . . Cobbler 1 | . . 1 . Subdweller 10 | . . 10 . Best Kill Streak 5 | 3 5 4 . Combat Bots Only 4 | . 4 3 . Max Kills in Single Turn 2 | 1 2 2 . Gunslinging . | . . . . Exploded 2 | . 2 2 . Melee . | . . . . Uniques/NPCs Destroyed . | . . . . Combat | -11 -10 -10 -8 -------- Run | Yrd Mat Sub Mat Hostile Shots Fired 147 | . 45 102 . Missed 46 | . 16 30 . Hits 101 | . 29 72 . Projectile 101 | . 29 72 . Critical Strikes 1 | . . 1 . Damage Taken 1399 | . 340 1059 . Core 228 | . 29 199 . Absorbed by Shields . | . . . . Core Remaining (%) 54 | 100 . 8 . Volleys Fired 171 | 18 50 100 3 Largest 2 | 2 2 2 1 Hottest 165 | 60 120 165 85 Shots Fired 288 | 36 79 170 3 Gun 130 | 36 8 83 3 Cannon 92 | . 52 40 . Launcher 15 | . 3 12 . Special 51 | . 16 35 . Kinetic 87 | 29 4 54 . Thermal 186 | 7 72 104 3 Explosive 15 | . 3 12 . Electromagnetic . | . . . . Robot Hit Streak 10 | 7 7 10 1 Robot Miss Streak 4 | 1 4 3 2 Penetration Max . | . . . . Secondary Targets . | . . . . Shots Hit Robots 114 | 24 34 53 3 Core Hits 65 | 6 21 37 1 Critical Kills . | . . . . Critical Parts Destroyed . | . . . . Critical Strikes 2 | . . 1 1 Burn 2 | . . 1 1 Melee Attacks 2 | . . . 2 Impact . | . . . . Slashing 2 | . . . 2 Piercing . | . . . . Sneak Attacks 1 | . . . 1 Combat Hostiles . | . . . . Follow-up Attacks . | . . . . Damage Inflicted 2727 | 263 1156 1226 82 Guns 1081 | 260 45 758 18 Cannons 658 | . 550 108 . Explosions 919 | . 559 360 . Melee 64 | . . . 64 Ramming 5 | 3 2 . . Kinetic 758 | 218 25 515 . Thermal 981 | 42 570 351 18 Explosive 919 | . 559 360 . Electromagnetic . | . . . . Impact . | . . . . Slashing 64 | . . . 64 Piercing . | . . . . Highest Corruption . | . . . . Average Corruption . | . . . . Corruption Purged . | . . . . Corruption Blocked . | . . . . Overload Shots . | . . . . Overflow Damage 79 | . 48 . 31 Projectiles . | . . . . Explosions 48 | . 48 . . Melee 31 | . . . 31 Knockbacks . | . . . . Impact . | . . . . Kinetic . | . . . . Secondary . | . . . . Self-Inflicted Damage 32 | . 32 . . Shots 1 | . 1 . . Rammed . | . . . . Targets Rammed 3 | 1 2 . . Kicked 3 | 1 2 . . Crushed . | . . . . Highest Temperature 207 | . 207 180 68 Average Temperature 66 | . 76 49 32 Received Heat Transfer 423 | . 126 297 . Siege Activations . | . . . . Martial Activations . | . . . . Shielding Activations . | . . . . Robots Disrupted . | . . . . Combat Hostiles . | . . . . Robots Corrupted . | . . . . Combat Hostiles . | . . . . Parts Fried . | . . . . Impact Corruptions . | . . . . Robots Melted . | . . . . Combat Hostiles . | . . . . Parts Melted 5 | . 1 4 . Heat Transferred 2189 | 100 1160 779 150 Parts Sabotaged . | . . . . Parts Stolen . | . . . . Parts Stripped . | . . . . Power Chain Reactions . | . . . . Alert | -11 -10 -10 -8 ------- Run | Yrd Mat Sub Mat Maximum Alert Level . | . . . . Low Security (%) 100 | 100 100 . 100 Level 1 . | . . . . Level 2 . | . . . . Level 3 . | . . . . Level 4 . | . . . . Level 5 . | . . . . High Security . | . . . . Max Security . | . . . . Peak Influence 130 | 10 130 . . Initial . | . . . . Average 36 | . 40 . . Influence Increases 644 | 20 474 150 . Destroy 0b10 Robot/C 400 | . 280 120 . Destroy 0b10 Robot/NC 40 | 20 20 . . Destroy Leader 62 | . 62 . . Successful Hack 6 | . 6 . . Disable Machine 75 | . 75 . . Destroy Structure 16 | . 16 . . Lose Combat Pursuer 45 | . 15 30 . Influence Decreases 644 | 20 474 150 . Time Decay 634 | 20 474 140 . Lost Part 10 | . . 10 . Squads Dispatched 5 | . 4 . 1 Investigation 2 | . 2 . . Extermination . | . . . . Reinforcement 3 | . 2 . 1 Assault . | . . . . Garrison . | . . . . Intercept . | . . . . Searches Triggered . | . . . . Construction Impeded . | . . . . Haulers Reinforced . | . . . . Active Scanning Responses . | . . . . Cargo Convoy Interrupts . | . . . . Stealth | -11 -10 -10 -8 --------- Run | Yrd Mat Sub Mat Distress Signals 2 | . 2 . . Communications Jammed . | . . . . Distress Signals . | . . . . Times Spotted 42 | . 25 16 1 Peak Tracking Total 5 | . 5 4 1 Tactical Retreats 2 | . 1 1 . Traps | -11 -10 -10 -8 ------- Run | Yrd Mat Sub Mat Traps Triggered 5 | . 2 3 . Indirectly . | . . . . Trap Hack Attempts . | . . . . Triggered . | . . . . Disarmed . | . . . . Reprogrammed . | . . . . Reused . | . . . . Traps Extracted . | . . . . Installed . | . . . . Triggered . | . . . . Machines | -11 -10 -10 -8 ---------- Run | Yrd Mat Sub Mat Machines Disabled 9 | . 5 4 . Max in Single Turn 3 | . 2 3 . Machines Repaired . | . . . . Machines Dismantled . | . . . . Machines Sabotaged . | . . . . Overloaded Fab Kills . | . . . . Hacking | -11 -10 -10 -8 --------- Run | Yrd Mat Sub Mat Machines Accessed 8 | . 5 2 1 Terminals 6 | . 5 . 1 Fabricators . | . . . . Repair Stations . | . . . . Recycling Units . | . . . . Scanalyzers . | . . . . Garrison Access . | . . . . Total Hacks 30 | . 14 14 2 Successful 17 | . 3 14 . Failed 12 | . 10 . 2 Catastrophic 2 | . 2 . . Database Lockouts 1 | . 1 . . Manual 13 | . 13 . . Terminals 16 | . 14 . 2 Fabricators . | . . . . Repair Stations . | . . . . Recycling Units . | . . . . Scanalyzers . | . . . . Garrison Access . | . . . . Terminal Hacks 17 | . 3 14 . Record 13 | . . 13 . Robot Analysis 2 | . 2 . . Alert Level 1 | . 1 . . Proto ID Catalog 1 | . . 1 . Fabricator Hacks . | . . . . Repair Station Hacks . | . . . . Recycling Unit Hacks . | . . . . Scanalyzer . | . . . . Garrison Access Hacks . | . . . . Unauthorized Hacks . | . . . . Terminals . | . . . . Fabricators . | . . . . Repair Stations . | . . . . Recycling Units . | . . . . Scanalyzers . | . . . . Garrison Access . | . . . . Data Cores Recovered . | . . . . Used . | . . . . Hacking Detections 6 | . 5 . 1 Full Trace Events 1 | . 1 . . Feedback Events . | . . . . Feedback Blocked . | . . . . Robot Schematics Acquired . | . . . . Robots Built . | . . . . Authchips . | . . . . Time . | . . . . Total Robot Build Rating . | . . . . Part Schematics Acquired . | . . . . Parts Built . | . . . . Authchips . | . . . . Time . | . . . . Total Part Build Rating . | . . . . Part Studies Acquired . | . . . . Parts Repaired . | . . . . Time . | . . . . Parts Recycled . | . . . . Recycled Matter . | . . . . Retrieved Matter . | . . . . Retrieved Components . | . . . . Parts Scanalyzed . | . . . . Part Schematics Acquired . | . . . . Parts Damaged . | . . . . Bothacking | -11 -10 -10 -8 ------------ Run | Yrd Mat Sub Mat Used RIF Installer . | . . . . Robots Hacked . | . . . . Non-combat . | . . . . Combat . | . . . . Robot Hacks Applied . | . . . . Relay Couplers Released . | . . . . Fabnet Peak Effective % . | . . . . Robots Rewired . | . . . . Allies Hacked . | . . . . Hacks Repelled . | . . . . Allies | -11 -10 -10 -8 -------- Run | Yrd Mat Sub Mat Total Allies . | . . . . Largest Group . | . . . . Highest-Rated Group . | . . . . Highest-Rated Ally . | . . . . Total Orders . | . . . . Ally Attacks . | . . . . Total Damage . | . . . . Kills . | . . . . Allies Corrupted . | . . . . Allies Melted . | . . . . Intel | -11 -10 -10 -8 ------- Run | Yrd Mat Sub Mat Active Infowar (turns) 2339 | . 753 1586 . Optics 111 | . . 111 . Sensors 1475 | . . 1475 . Terrain 753 | . 753 . . Robot Analysis Total 2 | . 2 . . Derelict Logs Recovered 1 | . . 1 . Drone Launches . | . . . . Drone Recoveries . | . . . . Exploration | -11 -10 -10 -8 ------------- Run | Yrd Mat Sub Mat Turns Passed 5044 | 119 1720 3113 92 Spaces Moved 1967 | 33 802 1100 32 Core . | . . . . Treads 988 | . . 956 32 Legs 979 | 33 802 144 . Wheels . | . . . . Hover . | . . . . Flight . | . . . . Fastest Speed 120 | 120 120 240 250 Average Speed 212 | 120 170 244 250 Slowest Speed 260 | 120 260 260 250 Overloaded Moves . | . . . . Propulsion Burnouts . | . . . . Robots Hopped . | . . . . Potential Cave-ins . | . . . . Cave-ins Triggered . | . . . . Exploration Rate (%) 42 | 3 96 68 3 Regions Visited 3 Branch Regions 1 Pre-discovered Areas 2 | . . 2 . Known Exits Taken . | . . . . Unknown Exits Taken 3 | 1 1 1 . Scrap Searched 7 | . . 7 . Spaces Dug 1 | . 1 . . Terrain Destroyed 27 | . 16 11 . Melee . | . . . . Projectile 6 | . 5 1 . AOE 21 | . 11 10 . Terrain Rammed . | . . . . Walls Destroyed . | . . . . Machines Disabled . | . . . . Actions | -11 -10 -10 -8 --------- Run | Yrd Mat Sub Mat Total 2442 | 78 1043 1284 37 Wait 199 | 24 130 45 . Move 1965 | 33 801 1099 32 Hop . | . . . . Pick Up 30 | 2 21 7 . Fast Attach 4 | . 4 . . Attach 4 | . 1 3 . Detach 1 | . . 1 . Swap 39 | 1 18 20 . Drop 25 | . 16 9 . Fire 171 | 18 50 100 3 Melee 2 | . . . 2 Ram . | . . . . Kick 2 | . 2 . . Crush . | . . . . Escape Stasis . | . . . . Rewire . | . . . . Trap . | . . . . Miscellaneous . | . . . . Route ------- -11/Scrapyard -10/Materials (discovered 5 exits: [*Mat x3] / [Min] / *Sub) -10/Subcaves (discovered 3 exits: *Mat x2 / [*Rec]) -8/Materials History --------- Turn | Location | Event 22 | -11/Scrapyard | Discovered new exit (range 3) 120 | -11/Scrapyard | Entered Materials 239 | -10/Materials | Central database locked down 302 | -10/Materials | Build established: Mutant 323 | -10/Materials | Discovered new exit (range 13) 441 | -10/Materials | Discovered new exit (range 14) 572 | -10/Materials | Discovered new exit (range 11) 1093 | -10/Materials | Discovered new exit (range 16) 1349 | -10/Materials | Build established: Scavenger-Mutant 1819 | -10/Materials | Discovered new exit (range 3) 1840 | -10/Materials | Entered Subcaves 1862 | -10/Subcaves | A swath of the cavern ceiling suddenly collapsed 2369 | -10/Subcaves | Discovered new exit (range 15) 2406 | -10/Subcaves | Shifting Twisted Machinery released Sub. Shrapnel Launcher 2641 | -10/Subcaves | Disturbed a concealed Subdweller 2681 | -10/Subcaves | Build established: Mutant 2872 | -10/Subcaves | Disturbed a concealed Subdweller 2884 | -10/Subcaves | Core integrity fell below 50% 2944 | -10/Subcaves | Shifting Twisted Machinery released Flamer 2980 | -10/Subcaves | Discovered new exit (range 8) 3987 | -10/Subcaves | Visited 4L-MR0's lab 4021 | -10/Subcaves | Found Prototype Device 4021 | -10/Subcaves | Identified Sfc. Transmogrifier 4031 | -10/Subcaves | Found Flightbrick 4343 | -10/Subcaves | A swath of the cavern ceiling suddenly collapsed 4399 | -10/Subcaves | A Subdweller sparked back to life 4399 | -10/Subcaves | A Subdweller sparked back to life 4399 | -10/Subcaves | A Subdweller sparked back to life 4417 | -10/Subcaves | Found Meta Core 4566 | -10/Subcaves | Core integrity fell below 20% 4768 | -10/Subcaves | Discovered new exit (range 11) 4788 | -10/Subcaves | Visited Clippyterm 4796 | -10/Subcaves | Learned location of Section 7 (-2) 4796 | -10/Subcaves | Learned 40 Factory zone layouts 4953 | -10/Subcaves | Entered Materials 4953 | -8/Materials | Evolved 4 slots: Propulsion x2, Utility x1, Weapon x1 5045 | -8/Materials | Self-destructed Last Messages --------------- It looks like you're researching the legendary digger of dangerously deep tunnels, unfortunately it seems not even members of the Boring Crew know what became of that one. 04860_ Sfc. Transmogrifier converts Imp. Ion Engine into Deuterium Engine. 04950_ Sfc. Transmogrifier converts Sub. Beam Cannon into Blade Saw. PARAMETERS=PROPULSION+2,UTILITY+1,WEAPON+1 LOCATION=UNKNOWN GOAL=ESCAPE 04973_ Connecting with Terminal... 04973_ Current location identified: Materials 04994_ O-24 Administrator: "IFF HANDSHAKE FAILED. SECURING TERMINAL." 05000_ Destroyed Hacking Suite. 05003_ O-24 Administrator suffers critical hit (Burn). 05004_ O-24 Administrator uses terminal to summon reinforcements. 05004_ ALERT: Hostiles spotted, dispatching reinforcements to Terminal M003. 05004_ O-24 Administrator locks terminal. 05017_ Sneak attack on O-24 Administrator. 05017_ Destroyed Imp. Hover Unit. 05036_ Sfc. Transmogrifier converts Blade Saw into Shock Rifle. Map ----- +----------------------------------------------------+ | | | | | | | | | | | | | | | ?????????????????????????????????????????????????? | | ?????????????????????????????????????????????????? | | ?????????????????????????????????????????????????? | | ?????????????????????????????????????????????????? | | ?????????????????????????????????????????????????? | | ?????????????????????????????????????????????????? | | ????????????###########??????????????????????????? | | ????????????# #??????????????????????????? | | ????????????# "" """ #####??????????????????????? | | ????????????# "" """ # #??????????????????????? | | ????????????# "T """ # #??????????????????????? | | ????????????# "" # #??????????????????????? | | ????????????# "" + #??????????????????????? | | ????????????# # #??????????????????????? | | ????????????# # #??????????????????????? | | ????????????########### #??????????????????????? | | ??????????????????????# #??????????????????????? | | ??????????????????????# #??????????????????????? | | ??????????????????????# @#??????????????????????? | | ??????????????????????# +??????????????????????? | | ??????????????????????# #??????????????????????? | | ????????????????????? + #??????????????????????? | | ???????????????????? "# #??????????????????????? | | ??????????????????? T#to #??????????????????????? | | ?????????????????? ?# #??????????????????????? | | ????????????????? ??# ??????????????????????? | | ????????????????###???# w??????????????????????? | | ?????????????????????? #??????????????????????? | | ?????????????????????? #??????????????????????? | | ?????????????????????? #??????????????????????? | | ?????????????????????### #???????????????????????? | | ???????????????????????? ????????????????????????? | | ???????????????????????? ????????????????????????? | | ???????????????????????? ????????????????????????? | | ?????????????????????????????????????????????????? | | ?????????????????????????????????????????????????? | | ?????????????????????????????????????????????????? | | ?????????????????????????????????????????????????? | | ?????????????????????????????????????????????????? | | ?????????????????????????????????????????????????? | | ?????????????????????????????????????????????????? | | ?????????????????????????????????????????????????? | | ?????????????????????????????????????????????????? | +----------------------------------------------------+ Best States ------------- Heat Dissipation 35 Energy Generation 14 Energy Capacity 275 Matter Stores 300 Matter Capacity 300 Sight Range 21 Robot Scan Range 14 Terrain Scan Range 16 Terrain Scan Density 10 Evasion (%) 55 Recoil Reduction 2 Item Schematics ----------------- None Robot Schematics ------------------ None Fabricated ------------ Nothing Repaired ---------- Nothing Studied --------- None Alien Tech Used ----------------- None Achievements -------------- None Challenges ------------ None Game ------ Seed LegTerrabombWings Manual? 0 Play Time 00:29:51 Cumulative 344.8 hours Start 2026.07.27 @ 21:44:52 End 2026.07.28 @ 20:41:51 Sessions 3 Manual Loads 0 Difficulty Rogue Special Mode None Game No. 427 Rogue 425 Adventurer 2 Explorer 0 Win Type - Total 4 Types 2/0/0/1/1/0/0/0/0/0 Lore% 81 Gallery% 67 Achievement% 62 Wizard Run 0 Options --------- Layout 0 ASCII 0 Keyboard 0 Movement Numpad Keybinds 0 Fullscreen 2 Font 24/Smallcaps Map View 76x50 Zoom Use 0% Tactical HUD 1 Map Filters NONE Filters NONE Steam 1 RUN: 7a10a836-ede2-44fe-a364-da3c709038e1